bitfinex/quotes_ETHUSD_20260120
["timestamp","ask_amount","ask_price","bid_price","bid_amount"]
[1768895267911,10.34483456,3127.7,3126.8,11.76202054]
[1768895268180,11.37931802,3127.7,3126.9,0.526]
[1768895268390,11.37931802,3127.7,3126.9,12.28802054]
[1768895268680,10.34383456,3127.6,3126.9,11.76202054]
[1768895268883,10.34383456,3127.4,3127.0,0.526]
[1768895269446,10.34383456,3127.4,3126.9,11.76202054]
[1768895269685,10.34383456,3127.4,3126.9,0.526]
[1768895270557,10.34383456,3127.4,3126.3,0.002]
[1768895270558,10.34383456,3127.0,3126.3,0.002]
[1768895270745,10.34383456,3126.8,3126.3,0.002]
[1768895271079,10.34383456,3127.2,3126.3,11.76402054]
[1768895271676,10.34383456,3127.4,3126.4,11.76202054]
[1768895271897,1.67840593,3127.5,3126.4,11.76202054]
[1768895272351,12.02224049,3127.5,3126.4,11.76202054]
[1768895272546,1.25472405,3127.4,3126.4,13.85136257]
[1768895272787,10.34383456,3127.5,3126.4,13.85136257]
[1768895274092,10.34383456,3127.5,3126.5,12.67153837]
[1768895274248,10.34383456,3127.5,3126.7,12.67153837]
[1768895274945,10.34483456,3127.7,3126.7,12.67153837]
[1768895275171,10.34483456,3127.7,3126.9,12.67153837]
[1768895275377,10.34483456,3127.7,3127.1,12.67153837]
[1768895276350,0.001,3127.2,3127.1,12.67153837]
[1768895276556,0.001,3127.2,3127.1,13.19753837]
[1768895278145,0.001,3127.2,3127.1,12.67153837]
[1768895278350,0.001,3127.2,3127.1,13.19753837]
[1768895280398,0.001,3127.2,3127.1,12.67153837]
[1768895280569,0.001,3127.2,3127.1,14.51729221]
[1768895288815,0.001,3127.7,3127.2,12.67153837]
[1768895288983,10.34483456,3127.7,3127.2,12.67153837]
[1768895290213,10.34483456,3127.7,3127.1,0.526]
[1768895290387,11.37931802,3127.7,3127.1,13.19753837]
[1768895290702,11.37931802,3127.7,3127.1,0.526]
[1768895291769,11.37931802,3127.7,3127.1,13.19753837]
[1768895292006,10.34483456,3127.7,3127.1,13.19753837]
[1768895292709,10.34483456,3127.7,3127.1,0.526]
[1768895292887,10.34483456,3127.7,3127.0,0.526]
[1768895293211,10.34383456,3127.5,3126.8,13.19753837]
[1768895293395,10.34383456,3127.5,3126.6,12.67153837]
[1768895293573,11.91881411,3127.5,3126.6,12.67153837]
[1768895293780,11.91881411,3127.5,3126.4,12.67153837]
[1768895293990,11.91881411,3127.5,3126.5,0.526]
[1768895294197,11.91881411,3127.5,3126.5,13.19753837]
[1768895294996,10.34383456,3127.4,3126.5,13.19753837]
[1768895295314,10.34383456,3127.2,3126.6,0.526]
[1768895295918,10.34383456,3127.3,3126.6,13.19753837]
[1768895299718,0.001,3127.0,3126.6,13.19753837]
[1768895302399,0.001,3127.0,3126.7,12.67153837]
[1768895304434,10.34383456,3127.6,3126.8,12.00867685]
[1768895307337,0.001,3127.7,3126.8,12.00867685]
[1768895307536,10.34582456,3127.7,3126.9,12.00867685]
[1768895307742,10.34582456,3127.7,3127.1,12.00867685]
[1768895307961,10.34582456,3127.7,3126.9,13.90936642]
[1768895308242,10.34482456,3127.6,3127.1,0.526]
[1768895308431,10.34482456,3127.6,3127.0,0.526]
[1768895310641,10.34482456,3127.6,3127.0,12.53467685]
[1768895311408,0.001,3127.3,3127.0,12.53467685]
[1768895312863,0.001,3127.3,3127.0,0.526]
[1768895313197,0.001,3127.3,3126.9,12.01067685]
[1768895313198,10.34482456,3127.2,3126.9,0.002]
[1768895313308,10.34482456,3127.2,3127.0,0.526]
[1768895313509,10.34582456,3127.3,3127.0,0.526]
[1768895313937,0.001,3127.3,3127.0,0.526]
[1768895315859,10.34582456,3127.3,3126.9,0.002]
[1768895316054,10.34582456,3127.3,3127.0,0.526]
[1768895316667,10.34582456,3127.3,3126.9,0.002]
[1768895317160,10.34582456,3127.3,3126.9,0.528]
[1768895320265,10.34482456,3127.1,3126.8,0.526]
[1768895321658,10.34582456,3127.3,3126.8,12.53467685]
[1768895321963,0.001,3127.3,3126.8,12.53467685]
[1768895322463,10.34582456,3127.3,3126.8,12.53467685]
[1768895323278,0.001,3127.0,3126.8,12.53467685]
[1768895323476,0.001,3127.0,3126.8,0.526]
[1768895323997,10.34582456,3127.0,3126.6,3.8]
[1768895324403,10.34582456,3127.0,3126.7,0.526]
[1768895325316,0.001,3127.0,3126.7,0.526]
[1768895325823,0.001,3127.0,3126.7,12.53958684]
[1768895329601,0.001,3127.0,3126.7,14.17374552]
[1768895329786,0.001,3127.3,3126.8,12.01358684]
[1768895335099,0.001,3127.0,3126.8,12.01358684]
[1768895338518,0.001,3127.0,3126.8,3.8]
[1768895338821,0.001,3127.0,3126.9,12.43122902]
[1768895338989,0.001,3127.0,3126.9,14.5901924]
[1768895340626,0.001,3127.3,3127.0,12.43122902]
[1768895340824,0.001,3127.3,3126.9,2.15896338]
[1768895340825,0.001,3127.3,3127.2,12.43122902]
[1768895342396,0.001,3127.3,3127.1,12.95722902]
[1768895346431,0.001,3127.3,3127.1,0.526]
[1768895346999,0.001,3127.3,3127.1,12.95722902]
[1768895347200,0.001,3127.3,3127.2,1.2957229]
[1768895347401,0.001,3127.3,3127.2,1.8217229]
[1768895347701,0.001,3127.3,3127.2,14.25295192]
[1768895351238,0.001,3127.7,3127.2,1.8217229]
[1768895351442,0.001,3127.7,3127.3,12.43122902]
[1768895351736,0.0008016,3128.0,3127.4,12.43122902]
[1768895352336,10.34661616,3128.0,3127.5,12.43122902]
[1768895352643,0.0008016,3128.0,3127.6,12.95722902]
[1768895353819,10.34661616,3128.0,3127.6,12.95722902]
[1768895354138,10.34661616,3128.0,3127.7,1.2957229]
[1768895355231,10.34581456,3128.1,3127.7,1.2957229]
[1768895357519,10.34581456,3128.3,3127.7,13.72695192]
[1768895357720,0.0008016,3128.4,3127.9,12.43122902]
[1768895357920,0.0008016,3128.4,3128.0,12.95722902]
[1768895358234,0.0008016,3128.4,3128.1,12.95722902]
[1768895361351,12.52634407,3128.4,3127.8,1.42529519]
[1768895361554,12.52554247,3128.2,3127.7,0.526]
[1768895361713,12.52554247,3128.2,3127.8,0.526]
[1768895363342,1.25263441,3128.3,3127.8,13.1738129]
[1768895363547,11.88403088,3128.4,3127.8,13.1738129]
[1768895363946,11.88403088,3128.4,3127.8,12.6478129]
[1768895364122,11.88403088,3128.4,3127.9,13.1738129]
[1768895364324,0.0008016,3128.4,3127.9,13.1738129]
[1768895367630,11.88403088,3128.4,3127.9,13.1738129]
[1768895367854,11.88403088,3128.4,3127.9,0.526]
[1768895368048,11.88403088,3128.4,3127.7,12.6478129]
[1768895368227,11.88403088,3128.4,3128.0,0.526]
[1768895368961,11.88403088,3128.4,3128.1,0.526]
[1768895369121,11.88403088,3128.4,3128.2,1e-08]
[1768895369320,11.88403088,3128.4,3128.3,1e-08]
[1768895369560,11.88403088,3128.4,3128.3,0.526]
[1768895369773,0.0008016,3128.4,3128.3,0.51577146]
[1768895370137,11.88403088,3128.4,3128.3,0.51577146]
[1768895370563,11.88403088,3128.4,3128.3,0.526]
[1768895374690,0.0008016,3128.4,3128.3,0.526]
[1768895375947,0.0008016,3128.4,3128.3,13.1738129]
[1768895376980,0.0008016,3128.4,3128.3,0.526]
[1768895379746,11.88403088,3128.4,3128.3,0.526]
[1768895379980,11.88403088,3128.4,3127.8,0.002]
[1768895379981,0.18585245,3128.3,3127.8,0.002]
[1768895380187,12.06908173,3128.3,3127.8,0.002]
[1768895380758,11.88322928,3128.2,3127.9,0.526]
[1768895381166,11.88322928,3128.2,3127.7,0.526]
[1768895381366,11.88322928,3128.2,3127.4,12.6478129]
[1768895381692,11.88322928,3128.2,3127.5,13.1738129]
[1768895381897,0.18585245,3128.3,3127.6,12.6478129]
[1768895382081,0.18585245,3128.3,3127.8,12.6478129]
[1768895382278,0.18585245,3128.3,3127.7,0.002]
[1768895382279,0.18585245,3128.3,3128.0,12.6478129]
[1768895385159,0.0008016,3128.4,3128.0,12.6478129]
[1768895386691,11.70980717,3128.7,3128.0,12.6478129]
[1768895386905,0.0008016,3128.7,3128.1,11.93339662]
[1768895388361,0.0008012,3129.0,3128.1,11.93339662]
[1768895388767,11.70980677,3129.0,3128.3,11.93339662]
[1768895389079,11.70980677,3129.0,3128.1,15.13021967]
[1768895389288,13.42112725,3129.0,3128.2,0.526]
[1768895389661,13.42112725,3129.0,3127.8,11.93339662]
[1768895389662,11.70900557,3128.8,3127.8,11.93339662]
[1768895389969,11.70900557,3128.8,3127.9,0.526]
[1768895390278,11.70900557,3128.8,3128.1,11.93339662]
[1768895390465,13.42112725,3129.0,3128.2,11.93339662]
[1768895390661,13.0511183,3128.9,3128.4,11.93339662]
[1768895390973,13.0511183,3128.9,3128.5,0.526]
[1768895392711,0.0008012,3129.0,3128.5,12.45939662]
[1768895392868,11.70980677,3129.0,3128.5,12.45939662]
[1768895393264,0.0008012,3129.0,3128.6,12.90962907]
[1768895393489,0.0008012,3129.3,3128.6,12.90962907]
[1768895394885,0.0008012,3129.3,3128.8,12.90962907]
[1768895395081,0.0008012,3129.3,3129.0,12.90962907]
[1768895397120,0.0008012,3129.3,3129.0,16.10552261]
[1768895398711,0.0008012,3129.3,3129.0,12.90962907]
[1768895399174,0.0008012,3129.3,3129.1,0.525]
[1768895399374,0.0008012,3129.3,3129.2,0.525]
[1768895400203,11.95769793,3129.3,3128.4,12.90962907]
[1768895400393,11.95594282,3129.3,3129.0,3.19589781]
[1768895400710,11.95689673,3129.5,3129.1,0.525]
[1768895401120,11.95689673,3129.5,3129.0,3.19589781]
[1768895401277,11.95689673,3129.5,3128.5,1.61062232]
[1768895401483,11.95689673,3129.4,3128.6,0.525]
[1768895402186,11.95689673,3129.4,3128.1,12.90962907]
[1768895402391,11.95689673,3129.1,3128.2,13.43462907]
[1768895402591,11.95689673,3129.1,3128.3,12.90962907]
[1768895402791,11.95689673,3129.6,3128.5,16.10595036]
[1768895403092,11.95689673,3129.6,3129.0,12.90962907]
[1768895403291,0.0008004,3129.7,3129.1,13.43462907]
[1768895403693,11.95769713,3129.7,3129.1,13.43462907]
[1768895405117,11.95769713,3129.7,3128.7,3.1961736]
[1768895405414,11.95769713,3129.7,3128.8,12.90962907]
[1768895405607,13.15346684,3129.7,3128.8,13.43462907]
[1768895405804,13.15346684,3129.7,3128.8,3.72109572]
[1768895405984,13.15346684,3129.7,3128.9,12.90962907]
[1768895406181,13.15346684,3129.7,3128.6,12.90962907]
[1768895406386,11.95689673,3129.6,3128.7,0.525]
[1768895406585,11.95689673,3129.4,3128.7,0.525]
[1768895406817,11.95689673,3129.4,3128.6,12.90962907]
[1768895407018,11.95789673,3129.4,3128.7,0.525]
[1768895407407,11.95789673,3129.4,3128.7,13.43462907]
[1768895407609,11.95789673,3129.4,3128.8,12.90962907]
[1768895407853,11.95789673,3129.4,3128.8,13.43462907]
[1768895408754,11.95789673,3129.4,3128.8,0.525]
[1768895408912,0.001,3129.4,3128.9,14.25309198]
[1768895410843,0.001,3129.4,3128.9,12.90962907]
[1768895411150,11.95789673,3129.4,3128.9,12.90962907]
[1768895413347,11.95789673,3129.4,3128.9,16.10563558]
[1768895413518,0.001,3129.4,3128.9,16.10563558]
[1768895413721,0.0008004,3129.7,3129.0,12.90962907]
[1768895413921,0.0008004,3129.7,3129.2,12.90962907]
[1768895414129,11.95769713,3129.7,3129.3,0.525]
[1768895414333,11.95769713,3129.7,3129.4,0.525]
[1768895414616,0.0008004,3129.7,3129.4,0.525]
[1768895414826,0.0008004,3129.7,3129.4,13.43462907]
[1768895415034,0.0008004,3129.7,3129.4,14.21541874]
[1768895415235,11.95689673,3130.0,3129.5,12.90962907]
[1768895415423,11.95689673,3130.0,3129.6,3.19529652]
[1768895415728,0.0008,3130.1,3129.6,16.10492559]
[1768895416028,0.0008,3130.1,3129.8,12.90962907]
[1768895417356,0.0008,3130.1,3129.9,0.525]
[1768895417652,11.95769673,3130.1,3130.0,0.525]
[1768895419044,11.95769673,3130.1,3129.9,0.525]
[1768895420259,12.70493486,3130.1,3129.4,3.8]
[1768895420848,0.74803813,3130.1,3129.4,3.8]
[1768895421017,11.95689673,3130.0,3129.4,4.325]
[1768895423636,11.95689673,3130.0,3129.3,12.90962907]
[1768895423834,11.84723453,3129.9,3129.0,3.802]
[1768895424254,11.84723453,3129.9,3129.1,0.525]
[1768895424775,11.84723453,3129.9,3129.0,3.802]
[1768895424936,11.84723453,3129.3,3129.0,0.525]
[1768895425128,11.84723453,3129.3,3128.7,12.32841845]
[1768895425318,11.84723453,3129.3,3128.6,0.002]
[1768895425523,11.84723453,3129.3,3128.7,0.525]
[1768895427756,11.84723453,3129.3,3128.7,12.85341845]
[1768895427962,5.23911467,3129.8,3128.8,0.525]
[1768895427963,11.84723453,3129.6,3128.8,0.525]
[1768895428267,11.84723453,3129.6,3128.9,12.32841845]
[1768895428430,11.84723453,3129.6,3129.0,0.525]
[1768895429362,2.0439809,3129.8,3129.1,12.32841845]
[1768895429725,11.84803453,3130.1,3129.1,12.32841845]
[1768895431127,11.84803453,3130.1,3129.4,12.33041845]
[1768895431327,0.001,3129.8,3129.5,0.525]
[1768895432593,0.001,3129.8,3129.5,12.85341845]
[1768895433872,0.001,3129.8,3129.5,12.32841845]
[1768895434059,0.001,3129.8,3129.6,0.525]
[1768895434639,0.001,3129.8,3129.5,12.32841845]
[1768895434841,0.001,3129.8,3129.6,0.525]
[1768895435876,0.001,3129.8,3129.4,12.33041845]
[1768895436095,0.001,3129.8,3129.6,0.525]
[1768895436777,0.001,3129.8,3129.6,12.85341845]
[1768895437079,0.0008,3130.1,3129.7,13.6137603]
[1768895437287,0.0008,3130.1,3129.7,12.32841845]
[1768895441192,11.84803453,3130.1,3129.4,0.002]
[1768895441359,11.84803453,3130.1,3129.7,0.525]
[1768895442899,0.0008,3130.1,3129.7,12.60714436]
[1768895443195,12.28826169,3130.1,3129.8,1.26071444]
[1768895443393,12.28826169,3130.1,3129.4,3.802]
[1768895443801,12.28746169,3130.0,3129.4,4.327]
[1768895444156,12.28746169,3130.0,3129.4,3.8001642]
[1768895444362,3.19560121,3130.1,3129.4,3.8001642]
[1768895444363,12.28746169,3129.7,3129.4,3.8001642]
[1768895444562,12.28746169,3129.7,3129.5,0.002]
[1768895444786,13.51630786,3129.7,3129.2,0.525]
[1768895445026,13.51630786,3129.7,3129.0,0.002]
[1768895445194,13.51630786,3129.7,3129.1,0.525]
[1768895445591,13.51630786,3129.7,3129.0,0.002]
[1768895446432,13.51630786,3129.7,3129.0,12.08414436]
[1768895447424,12.28746169,3129.5,3129.0,12.08414436]
[1768895447929,12.28746169,3129.5,3129.0,0.527]
[1768895448429,12.28746169,3129.5,3129.0,0.002]
[1768895448728,12.28746169,3129.5,3128.6,0.002]
[1768895448729,12.28746169,3129.4,3128.6,0.002]
[1768895449026,12.28746169,3129.2,3128.6,0.002]
[1768895450091,12.28746169,3129.2,3128.6,12.08414436]
[1768895457550,12.28746169,3129.2,3128.6,0.002]
[1768895457954,12.28746169,3129.2,3128.9,0.002]
[1768895458139,12.28746169,3129.2,3128.6,0.002]
[1768895458342,12.04800017,3129.0,3128.6,0.002]
[1768895460259,12.04800017,3129.0,3128.5,0.002]
[1768895460955,12.04800017,3128.9,3128.5,0.002]
[1768895461361,12.04800017,3128.9,3128.3,12.19345217]
[1768895461659,12.04800017,3128.7,3128.0,12.19345217]
[1768895461859,12.04800017,3128.5,3128.0,12.19345217]
[1768895462063,12.04800017,3128.5,3128.0,12.71945217]
[1768895462260,12.04800017,3128.5,3127.7,12.19625377]
[1768895462422,12.04800017,3128.5,3127.9,0.526]
[1768895462627,12.04800017,3128.5,3127.7,12.19625377]
[1768895462840,12.04800017,3128.5,3127.8,0.526]
[1768895463160,12.04800017,3128.3,3127.7,12.19625377]
[1768895463368,12.04800017,3128.3,3127.7,12.72225377]
[1768895463862,12.04800017,3128.1,3127.4,12.19625377]
[1768895464559,5.39904583,3127.9,3127.4,2.94520117]
[1768895464763,12.04800017,3127.8,3127.3,0.528]
[1768895464928,12.04800017,3127.8,3127.3,12.72145217]
[1768895467693,12.04800017,3127.8,3127.3,12.19545217]
[1768895468557,0.525,3128.1,3127.3,12.19545217]
[1768895468558,12.04800017,3128.0,3127.3,12.19545217]
[1768895469881,13.30530019,3128.0,3127.3,12.72145217]
[1768895470959,0.001,3127.5,3127.3,12.72145217]
[1768895471899,0.001,3127.5,3127.3,12.19545217]
[1768895472099,0.001,3127.5,3127.3,12.72145217]
[1768895472600,0.001,3127.5,3127.3,12.19545217]
[1768895473964,0.001,3127.5,3127.3,0.002]
[1768895474162,12.67805675,3127.5,3127.3,0.002]
[1768895476265,12.04900017,3127.5,3127.3,0.002]
[1768895476465,0.001,3127.5,3127.3,0.002]
[1768895476896,1.25730002,3128.0,3127.3,0.002]
[1768895477090,3.72187675,3128.1,3127.3,0.002]
[1768895477091,12.04800017,3127.9,3127.3,12.19545217]
[1768895478736,12.57300017,3128.1,3127.3,12.19545217]
[1768895478884,12.04800017,3128.3,3127.5,12.19345217]
[1768895480216,12.04800017,3128.3,3127.5,12.71945217]
[1768895480921,12.04800017,3128.2,3127.5,12.71945217]
[1768895482105,12.04800017,3128.4,3127.5,12.71945217]
[1768895482411,0.001,3128.0,3127.5,12.71945217]
[1768895482636,0.001,3128.0,3127.5,13.99159739]
[1768895483129,11.74058384,3128.0,3127.5,13.46559739]
[1768895483330,11.74058384,3128.0,3127.5,12.19345217]
[1768895483633,11.74058384,3128.0,3127.5,12.4630705]
[1768895485231,11.74058384,3128.0,3127.5,0.526]
[1768895485434,11.74058384,3128.0,3127.5,12.4630705]
[1768895487220,11.74058384,3128.0,3127.5,11.9370705]
[1768895488023,0.001,3128.0,3127.5,11.9370705]
[1768895490438,0.001,3128.0,3127.5,13.50333972]
[1768895493940,0.001,3127.7,3127.5,13.50333972]
[1768895495144,0.001,3127.7,3127.4,0.526]
[1768895495310,11.74058384,3127.7,3127.4,0.526]
[1768895495509,0.001,3127.7,3127.4,12.4630705]
[1768895497436,0.001,3127.7,3127.4,11.9370705]
[1768895497633,0.001,3127.7,3127.4,12.4630705]
[1768895498547,0.001,3127.7,3127.4,0.526]
[1768895498849,11.74058384,3127.7,3127.3,12.4650705]
[1768895500258,0.001,3127.7,3127.3,12.4650705]
[1768895500855,0.001,3128.0,3127.4,11.9370705]
[1768895502657,11.73958384,3128.6,3127.6,11.9370705]
[1768895502968,11.73958384,3128.6,3127.7,12.4630705]
[1768895503364,11.75549308,3128.8,3127.7,12.4630705]
[1768895505170,0.525,3128.9,3127.9,12.99253859]
[1768895505474,12.60390351,3128.9,3127.9,14.98382925]
[1768895506584,12.60390351,3128.9,3128.1,12.99253859]
[1768895506739,12.60390351,3128.9,3128.1,13.51853859]
[1768895507623,12.60390351,3128.9,3127.9,14.98382925]
[1768895507868,11.75549308,3128.8,3128.0,13.51853859]
[1768895508072,11.75549308,3128.6,3128.1,0.526]
[1768895508269,11.75549308,3128.6,3128.0,0.526]
[1768895508438,11.75549308,3128.6,3127.9,0.526]
[1768895508639,11.75549308,3128.6,3127.6,12.99253859]
[1768895508892,11.75549308,3128.6,3127.7,0.526]
[1768895509171,1.57999205,3128.7,3127.6,13.51853859]
[1768895509172,11.75549308,3128.4,3127.6,13.51853859]
[1768895509636,11.75549308,3128.4,3127.6,12.99253859]
[1768895509837,11.75549308,3128.4,3127.7,13.51853859]
[1768895512077,11.75549308,3128.8,3127.8,12.99253859]
[1768895512239,12.96346359,3128.8,3127.8,15.52411564]
[1768895513577,12.96346359,3128.8,3127.9,3.19703315]
[1768895513779,12.96346359,3128.8,3128.0,12.92852284]
[1768895513978,1.20797051,3128.8,3128.2,12.92852284]
[1768895514178,11.94466075,3128.9,3128.2,12.92852284]
[1768895514584,0.0008016,3129.0,3128.2,12.92852284]
[1768895515778,0.0008016,3129.0,3128.4,12.92852284]
[1768895515946,0.0008016,3129.0,3128.6,12.92852284]
[1768895516395,0.0008016,3129.0,3128.6,14.27397512]
[1768895517648,11.94286555,3129.5,3128.6,4.54177012]
[1768895517853,11.94286555,3129.5,3128.7,12.92852284]
[1768895518580,11.94546155,3129.7,3128.7,12.92852284]
[1768895519078,11.94546155,3129.7,3128.9,12.92852284]
[1768895520188,11.94546155,3129.7,3129.0,0.526]
[1768895520394,11.94546155,3129.7,3128.2,12.92852284]
[1768895520587,11.94466075,3129.5,3128.4,12.92852284]
[1768895520804,11.94466075,3129.5,3128.5,3.19639494]
[1768895520984,11.94466075,3129.5,3128.6,0.526]
[1768895522184,11.94466075,3129.5,3128.5,3.72241832]
[1768895522507,11.94466075,3129.5,3128.7,12.92852284]
[1768895522707,11.94466075,3129.5,3128.6,6.39258191]
[1768895522708,11.94546155,3129.7,3128.9,12.92852284]
[1768895523008,11.94546155,3129.7,3129.1,12.92852284]
[1768895524007,11.94546155,3129.7,3129.1,16.12431857]
[1768895524308,11.94546155,3129.7,3129.1,12.92852284]
[1768895524536,0.5258,3130.1,3129.3,12.92852284]
[1768895524537,11.94546075,3130.1,3129.3,12.92852284]
[1768895524882,11.94546075,3130.1,3129.4,0.526]
[1768895525383,11.94546075,3130.1,3129.4,13.45452284]
[1768895526204,11.94546075,3130.1,3129.5,0.526]
[1768895527709,11.94546075,3130.1,3129.5,13.45452284]
[1768895527920,11.94546075,3130.1,3129.5,14.70111009]
[1768895528579,11.94546075,3130.1,3129.5,12.92852284]
[1768895528777,11.94546075,3130.1,3129.5,0.526]
[1768895529213,11.94546075,3130.1,3129.3,12.92852284]
[1768895529418,11.94546075,3130.1,3129.5,0.526]
[1768895529817,11.94546075,3130.1,3129.3,12.92852284]
[1768895529985,11.94546075,3130.1,3129.2,1.11679702]
[1768895529986,11.94466075,3129.9,3129.4,0.526]
[1768895530181,11.94466075,3129.7,3129.4,0.526]
[1768895530386,0.001,3129.8,3129.4,0.526]
[1768895530693,11.94566075,3129.8,3129.5,0.002]
[1768895539290,11.94566075,3129.8,3128.3,12.92852284]
[1768895539525,11.94466075,3129.6,3128.8,12.92852284]
[1768895539712,11.94466075,3129.6,3128.9,0.526]
[1768895540028,11.94466075,3129.6,3128.9,13.45452284]
[1768895541025,11.94466075,3129.6,3129.0,0.526]
[1768895541332,11.94466075,3129.6,3129.1,12.92852284]
[1768895542095,11.94566075,3129.8,3129.1,12.92852284]
[1768895542293,11.94466075,3129.6,3129.0,13.45452284]
[1768895542895,11.94466075,3129.6,3129.5,0.002]
[1768895543114,11.94466075,3129.6,3129.0,13.45452284]
[1768895545311,11.94466075,3129.6,3129.0,0.526]
[1768895545711,11.94466075,3129.6,3128.9,12.5727342]
[1768895547104,11.94466075,3129.6,3128.9,12.0467342]
[1768895547302,13.25868343,3129.6,3129.0,12.5727342]
[1768895548327,11.94466075,3129.6,3129.0,12.5727342]
[1768895548536,11.98106083,3129.8,3129.0,12.5727342]
[1768895549017,11.98106083,3129.8,3129.1,12.0467342]
[1768895551413,0.001,3129.8,3129.1,12.0467342]
[1768895551816,11.98106083,3129.8,3129.1,12.0467342]
[1768895552636,0.001,3129.8,3129.2,12.0467342]
[1768895554415,11.98106083,3129.8,3129.4,12.0467342]
[1768895554622,0.001,3129.5,3129.4,12.5727342]
[1768895555343,0.001,3129.5,3129.4,12.0467342]
[1768895560848,0.001,3129.5,3129.3,0.528]
[1768895561044,0.001,3129.8,3129.4,12.0467342]
[1768895561341,0.0008,3130.1,3129.5,12.0467342]
[1768895563311,0.0008,3130.1,3129.7,12.62936572]
[1768895563509,0.0008,3130.1,3129.9,12.62936572]
[1768895563741,0.5455202,3130.7,3129.9,12.62936572]
[1768895563968,13.04751054,3130.7,3129.9,12.62936572]
[1768895564126,13.04751054,3130.7,3129.9,13.94490229]
[1768895564446,12.52251054,3130.7,3129.9,13.94490229]
[1768895564940,12.52251054,3130.7,3130.0,0.526]
[1768895565147,12.52251054,3130.7,3129.9,0.526]
[1768895565859,12.52251054,3130.7,3129.7,12.62936572]
[1768895566025,12.52251054,3130.7,3129.9,0.526]
[1768895567054,12.50199034,3130.3,3129.9,0.526]
[1768895569160,12.50199034,3130.3,3129.9,13.15536572]
[1768895569336,12.50199034,3130.3,3129.9,14.7904109]
[1768895571062,0.001,3130.4,3129.9,14.7904109]
[1768895571246,0.001,3130.4,3129.9,5.35601793]
[1768895571478,0.001,3130.4,3130.0,12.62936572]
[1768895572964,0.001,3130.4,3130.1,12.62936572]
[1768895573700,12.87474601,3131.2,3130.2,12.33994557]
[1768895573977,12.87474601,3131.2,3130.4,12.33994557]
[1768895574186,12.87474601,3131.2,3130.4,13.62644013]
[1768895574392,12.87474601,3131.2,3130.5,0.525]
[1768895574550,12.87474601,3131.2,3130.0,15.53483341]
[1768895574750,13.39974601,3131.2,3130.1,0.525]
[1768895575081,12.87474601,3131.1,3130.1,0.525]
[1768895575240,12.87474601,3130.9,3130.1,16.05972814]
[1768895575446,12.87474601,3130.9,3130.2,12.33994557]
[1768895576744,12.87474601,3130.9,3130.2,12.86494557]
[1768895577163,12.87474601,3131.1,3130.3,12.33994557]
[1768895577938,12.87474601,3131.1,3130.0,12.33994557]
[1768895578138,12.87474601,3130.9,3130.3,0.525]
[1768895578543,12.87474601,3130.9,3130.0,0.525]
[1768895578742,0.001,3130.6,3130.0,0.525]
[1768895578997,12.87474601,3130.5,3130.0,0.525]
[1768895579271,12.87474601,3130.5,3130.0,12.86494557]
[1768895579843,0.001,3130.6,3130.1,12.33994557]
[1768895580457,12.87474601,3131.0,3130.2,12.33994557]
[1768895580990,12.87474601,3131.0,3130.4,12.33994557]
[1768895581368,12.87474601,3131.0,3130.3,0.525]
[1768895581570,12.87474601,3131.0,3130.2,12.33994557]
[1768895581903,10.56535287,3131.4,3130.3,12.33994557]
[1768895582106,10.56535287,3131.4,3130.5,12.33994557]
[1768895582394,10.56535287,3131.4,3130.5,0.525]
[1768895582595,10.56535287,3131.4,3130.4,0.525]
[1768895582813,12.87474601,3131.2,3130.4,12.86494557]
[1768895583393,12.87474601,3131.2,3130.4,12.33994557]
[1768895583568,12.87474601,3131.2,3130.5,12.86494557]
[1768895584278,10.56615327,3131.5,3130.5,12.86494557]
[1768895584662,10.56615327,3131.5,3130.5,12.33994557]
[1768895584994,12.87474601,3131.3,3130.5,0.525]
[1768895585296,12.87474601,3131.1,3129.8,12.33994557]
[1768895585495,12.87474601,3131.1,3129.9,12.86494557]
[1768895586392,12.87474601,3131.1,3129.9,12.33994557]
[1768895586569,12.87474601,3130.9,3130.0,0.525]
[1768895586760,12.87474601,3130.7,3129.7,12.33994557]
[1768895587083,12.87474601,3130.7,3129.8,12.86494557]
[1768895587691,12.87474601,3130.7,3129.8,16.06002429]
[1768895587889,12.87474601,3130.7,3129.8,12.86494557]
[1768895588093,12.87474601,3130.7,3129.8,14.47095216]
[1768895589956,16.06894058,3130.7,3129.8,12.33994557]
[1768895590157,12.87474601,3130.5,3129.4,12.33994557]
[1768895590465,12.87474601,3130.2,3129.4,0.525]
[1768895590669,12.87474601,3130.2,3129.3,12.86694557]
[1768895590893,5.39771646,3130.3,3129.3,12.86694557]
[1768895590894,12.87474601,3130.0,3129.3,12.34194557]
[1768895591361,12.87474601,3130.0,3129.3,0.002]
[1768895592183,16.069637,3130.0,3129.3,0.002]
[1768895592489,12.87474601,3130.0,3129.3,0.002]
[1768895593070,16.0696362,3130.0,3129.3,0.002]
[1768895593388,12.87474601,3129.8,3129.3,0.002]
[1768895594999,12.87474601,3129.6,3129.0,0.002]
[1768895595163,12.87474601,3129.6,3128.5,12.34274597]
[1768895595164,12.87474601,3129.3,3128.5,12.34274597]
[1768895595373,12.87474601,3129.3,3128.6,0.525]
[1768895596008,12.87474601,3129.3,3128.5,0.0028004]
[1768895596299,12.87474601,3129.1,3128.5,0.0028004]
[1768895596505,12.87474601,3129.1,3128.5,12.34274597]
[1768895597272,12.87474601,3129.1,3128.5,0.0028004]
[1768895600586,12.87474601,3129.1,3128.5,12.34274597]
[1768895602297,16.07063096,3129.1,3128.5,0.0028004]
[1768895602595,12.87474601,3128.9,3128.3,0.526]
[1768895602771,12.87474601,3128.9,3128.8,0.002]
[1768895602977,12.87474601,3128.9,3128.3,0.526]
[1768895603310,12.87474601,3128.9,3128.2,0.528]
[1768895603474,12.46602085,3128.7,3128.2,0.528]
[1768895604072,12.46602085,3128.7,3128.2,12.96077365]
[1768895604279,12.46602085,3128.9,3128.2,12.96077365]
[1768895608501,12.46602085,3129.6,3128.3,12.43277365]
[1768895608810,12.46602085,3129.6,3128.5,12.43277365]
[1768895609050,12.46602085,3129.6,3128.7,12.43277365]
[1768895609618,12.99102085,3129.8,3128.7,12.43277365]
[1768895609823,12.99102085,3129.8,3128.8,12.43277365]
[1768895610391,12.46682125,3130.1,3128.9,12.43277365]
[1768895610644,0.0008004,3130.1,3129.2,12.43277365]
[1768895611553,0.0008004,3130.1,3129.3,12.43277365]